[Event "Ebbe cup 43"]
[Site "Schackcentrum, Vegatan 20, Gothenburg, Sweden"]
[Date "2022.09.11"]
[Round "5.3"]
[White "Dahlin, Emil"]
[Black "Andersson, Sol"]
[Result "0-1"]
[TimeControl "90 minutes for 40 moves + 15 minutes for the rest of the game + 30 seconds per move from move one."]
[WhiteFideId "1771035"]
[BlackFideId "1762702"]
[WhiteElo "1133"]
[BlackElo "1454"]

1. e4 {[%clk 01:30:56]} {[%emt 00:00:04]} c5 {[%clk 01:30:50]} {[%emt
00:00:10]} 2. Nf3 {[%clk 01:31:06]} {[%emt 00:00:20]} g6 {[%clk 01:31:09]}
{[%emt 00:00:11]} 3. d4 {[%clk 01:31:08]} {[%emt 00:00:29]} cxd4 {[%clk
01:31:32]} {[%emt 00:00:06]} 4. Nxd4 {[%clk 01:31:21]} {[%emt 00:00:18]} Bg7
{[%clk 01:31:49]} {[%emt 00:00:13]} 5. c4 {[%clk 01:31:13]} {[%emt 00:00:39]}
Nc6 {[%clk 01:31:34]} {[%emt 00:00:45]} 6. Be3 {[%clk 01:31:13]} {[%emt
00:00:30]} Nf6 {[%clk 01:31:40]} {[%emt 00:00:24]} 7. Bd3 {[%clk 01:30:59]}
{[%emt 00:00:45]} Ne5 {[%clk 01:30:40]} {[%emt 00:01:29]} 8. O-O {[%clk
01:30:15]} {[%emt 00:01:13]} Nxd3 {[%clk 01:30:07]} {[%emt 00:01:03]} 9. Qxd3
{[%clk 01:30:26]} {[%emt 00:00:18]} d6 {[%clk 01:28:18]} {[%emt 00:02:20]} 10.
Nc3 {[%clk 01:28:37]} {[%emt 00:02:19]} O-O {[%clk 01:28:00]} {[%emt 00:00:47]}
11. Rfe1 {[%clk 01:27:18]} {[%emt 00:01:50]} Bd7 {[%clk 01:26:31]} {[%emt
00:01:57]} 12. Rac1 {[%clk 01:26:12]} {[%emt 00:01:38]} Rc8 {[%clk 01:26:22]}
{[%emt 00:00:39]} 13. Bf4 {[%clk 01:25:10]} {[%emt 00:01:33]} e5 {[%clk
01:24:08]} {[%emt 00:02:45]} 14. Bxe5 {[%clk 01:09:00]} {[%emt 00:16:39]} dxe5
{[%clk 01:24:29]} {[%emt 00:00:08]} 15. Nf3 {[%clk 01:09:11]} {[%emt 00:00:19]}
Be6 {[%clk 01:24:38]} {[%emt 00:00:22]} 16. Qxd8 {[%clk 01:08:45]} {[%emt
00:00:55]} Rfxd8 {[%clk 01:25:03]} {[%emt 00:00:05]} 17. Nxe5 {[%clk 01:08:48]}
{[%emt 00:00:28]} Bxc4 {[%clk 01:25:15]} {[%emt 00:00:17]} 18. f3 {[%clk
01:03:40]} {[%emt 00:05:38]} Be6 {[%clk 01:21:43]} {[%emt 00:04:00]} 19. a3
{[%clk 00:59:37]} {[%emt 00:04:36]} Nh5 {[%clk 01:18:30]} {[%emt 00:03:28]} 20.
Ng4 {[%clk 00:56:13]} {[%emt 00:04:07]} Nf4 {[%clk 01:17:40]} {[%emt 00:01:20]}
21. Rcd1 {[%clk 00:46:54]} {[%emt 00:09:49]} Bd4+ {[%clk 01:15:29]} {[%emt
00:02:40]} 22. Nf2 {[%clk 00:43:47]} {[%emt 00:03:37]} Bxf2+ {[%clk 01:15:38]}
{[%emt 00:00:21]} 23. Kxf2 {[%clk 00:43:57]} {[%emt 00:00:20]} Nd3+ {[%clk
01:16:01]} {[%emt 00:00:08]} 24. Ke3 {[%clk 00:42:42]} {[%emt 00:01:45]} Nxe1
{[%clk 01:16:22]} {[%emt 00:00:09]} 25. Rxe1 {[%clk 00:43:02]} {[%emt
00:00:10]} Rd7 {[%clk 01:16:22]} {[%emt 00:00:31]} 26. Nb5 {[%clk 00:40:43]}
{[%emt 00:02:49]} a6 {[%clk 01:16:16]} {[%emt 00:00:36]} 27. Nd4 {[%clk
00:40:18]} {[%emt 00:00:54]} Rdc7 {[%clk 01:15:34]} {[%emt 00:01:12]} 28. Rd1
{[%clk 00:38:45]} {[%emt 00:02:04]} Rc1 {[%clk 01:15:07]} {[%emt 00:00:57]} 29.
Rd2 {[%clk 00:38:00]} {[%emt 00:01:16]} R1c5 {[%clk 01:13:52]} {[%emt
00:01:39]} 30. Kf4 {[%clk 00:32:38]} {[%emt 00:05:57]} Bc4 {[%clk 01:10:23]}
{[%emt 00:03:59]} 31. Rc2 {[%clk 00:31:24]} {[%emt 00:01:45]} Bb5 {[%clk
01:10:13]} {[%emt 00:00:40]} 32. Rd2 {[%clk 00:31:13]} {[%emt 00:00:40]} Rd8
{[%clk 01:10:20]} {[%emt 00:00:23]} 33. Ke3 {[%clk 00:30:57]} {[%emt 00:00:46]}
Rcc8 {[%clk 01:09:27]} {[%emt 00:01:23]} 34. g3 {[%clk 00:26:17]} {[%emt
00:05:11]} Rd7 {[%clk 01:08:40]} {[%emt 00:01:15]} 35. Nxb5 {[%clk 00:25:00]}
{[%emt 00:01:48]} Rxd2 {[%clk 01:08:55]} {[%emt 00:00:15]} 36. Kxd2 {[%clk
00:25:15]} {[%emt 00:00:15]} axb5 {[%clk 01:09:22]} {[%emt 00:00:04]} 37. Kd3
{[%clk 00:25:01]} {[%emt 00:00:44]} Kf8 {[%clk 01:09:44]} {[%emt 00:00:08]} 38.
b4 {[%clk 00:24:38]} {[%emt 00:00:54]} Ke7 {[%clk 01:10:07]} {[%emt 00:00:06]}
39. Kd4 {[%clk 00:24:55]} {[%emt 00:00:13]} Rc2 {[%clk 01:10:08]} {[%emt
00:00:29]} 40. Kd5 {[%clk 00:24:59]} {[%emt 00:00:26]} Ra2 {[%clk 01:10:23]}
{[%emt 00:00:15]} 41. Kc5 {[%clk 00:25:13]} {[%emt 00:00:17]} Rxa3 {[%clk
01:10:46]} {[%emt 00:00:06]} 42. Kxb5 {[%clk 00:25:19]} {[%emt 00:00:23]} Rxf3
{[%clk 01:11:10]} {[%emt 00:00:07]} 43. Kb6 {[%clk 00:25:00]} {[%emt 00:00:50]}
Rb3 {[%clk 01:11:24]} {[%emt 00:00:15]} 44. b5 {[%clk 00:25:14]} {[%emt
00:00:17]} Ke6 {[%clk 01:11:43]} {[%emt 00:00:10]} 45. e5 {[%clk 00:24:49]}
{[%emt 00:00:56]} Kxe5 {[%clk 01:12:05]} {[%emt 00:00:08]} 46. Kxb7 {[%clk
00:25:13]} {[%emt 00:00:06]} Rxb5+ {[%clk 01:12:31]} {[%emt 00:00:04]} 47. Kc6
{[%clk 00:25:17]} {[%emt 00:00:26]} Rb2 {[%clk 01:12:52]} {[%emt 00:00:08]} 48.
h4 {[%clk 00:25:32]} {[%emt 00:00:16]} Rg2 {[%clk 01:13:16]} {[%emt 00:00:06]}
49. h5 {[%clk 00:25:41]} {[%emt 00:00:20]} Rxg3 {[%clk 01:13:33]} {[%emt
00:00:12]} 50. hxg6 {[%clk 00:26:04]} {[%emt 00:00:08]} fxg6 {[%clk 01:13:45]}
{[%emt 00:00:18]} 51. Kc5 {[%clk 00:26:19]} {[%emt 00:00:16]} Rc3+ {[%clk
01:14:02]} {[%emt 00:00:12]} 52. Kb4 {[%clk 00:26:24]} {[%emt 00:00:26]} Kd4
{[%clk 01:14:17]} {[%emt 00:00:15]} 53. Kb5 {[%clk 00:26:41]} {[%emt 00:00:13]}
h5 {[%clk 01:14:35]} {[%emt 00:00:12]} 54. Kb4 {[%clk 00:26:54]} {[%emt
00:00:18]} h4 {[%clk 01:14:59]} {[%emt 00:00:05]} 55. Kb5 {[%clk 00:27:08]}
{[%emt 00:00:16]} h3 {[%clk 01:15:23]} {[%emt 00:00:06]} 0-1

[Event "Ebbe cup 43"]
[Site "Schackcentrum, Vegatan 20, Gothenburg, Sweden"]
[Date "2022.09.11"]
[Round "5.4"]
[White "Konduru, Sairahul"]
[Black "Madevan Vaishnavi, Yaashvan"]
[Result "1-0"]
[TimeControl "90 minutes for 40 moves + 15 minutes for the rest of the game + 30 seconds per move from move one."]
[WhiteFideId "1768247"]
[BlackFideId "1772180"]
[WhiteElo "1281"]
[BlackElo "1439"]

1. e4 {[%clk 01:30:55]} {[%emt 00:00:05]} d6 {[%clk 01:30:54]} {[%emt
00:00:07]} 2. d4 {[%clk 01:31:18]} {[%emt 00:00:08]} Nf6 {[%clk 01:31:17]}
{[%emt 00:00:07]} 3. Nc3 {[%clk 01:29:28]} {[%emt 00:02:20]} g6 {[%clk
01:31:29]} {[%emt 00:00:18]} 4. Bg5 {[%clk 01:29:46]} {[%emt 00:00:12]} Bg7
{[%clk 01:31:05]} {[%emt 00:00:54]} 5. e5 {[%clk 01:29:43]} {[%emt 00:00:33]}
dxe5 {[%clk 01:31:10]} {[%emt 00:00:25]} 6. dxe5 {[%clk 01:30:05]} {[%emt
00:00:08]} Nfd7 {[%clk 01:30:33]} {[%emt 00:01:07]} 7. f4 {[%clk 01:28:13]}
{[%emt 00:02:22]} O-O {[%clk 01:28:40]} {[%emt 00:02:23]} 8. Qd2 {[%clk
01:25:55]} {[%emt 00:02:48]} f6 {[%clk 01:28:22]} {[%emt 00:00:48]} 9. Bc4+
{[%clk 01:24:26]} {[%emt 00:01:58]} Kh8 {[%clk 01:27:10]} {[%emt 00:01:42]} 10.
exf6 {[%clk 01:23:56]} {[%emt 00:01:00]} Nxf6 {[%clk 01:25:27]} {[%emt
00:02:13]} 11. O-O-O {[%clk 01:23:45]} {[%emt 00:00:41]} Qxd2+ {[%clk
01:24:43]} {[%emt 00:01:14]} 12. Rxd2 {[%clk 01:24:08]} {[%emt 00:00:07]} Nc6
{[%clk 01:23:22]} {[%emt 00:01:51]} 13. Bxf6 {[%clk 01:21:59]} {[%emt
00:02:38]} Bxf6 {[%clk 01:20:56]} {[%emt 00:02:57]} 14. Nd5 {[%clk 01:21:52]}
{[%emt 00:00:36]} Na5 {[%clk 01:15:50]} {[%emt 00:05:36]} 15. Be2 {[%clk
01:17:48]} {[%emt 00:04:35]} Rd8 {[%clk 01:09:24]} {[%emt 00:06:56]} 16. Nxc7
{[%clk 01:12:02]} {[%emt 00:06:16]} Rxd2 {[%clk 01:09:43]} {[%emt 00:00:10]} 17.
Kxd2 {[%clk 01:12:22]} {[%emt 00:00:11]} Rb8 {[%clk 01:09:55]} {[%emt
00:00:18]} 18. Kc1 {[%clk 01:12:12]} {[%emt 00:00:39]} Bd7 {[%clk 01:03:03]}
{[%emt 00:07:22]} 19. Nf3 {[%clk 01:07:17]} {[%emt 00:05:25]} Rc8 {[%clk
00:59:11]} {[%emt 00:04:23]} 20. Nd5 {[%clk 01:02:17]} {[%emt 00:05:29]} Bf5
{[%clk 00:54:40]} {[%emt 00:05:00]} 21. Bd1 {[%clk 00:57:19]} {[%emt 00:05:28]}
Nc4 {[%clk 00:48:20]} {[%emt 00:06:51]} 22. Nxf6 {[%clk 00:56:31]} {[%emt
00:01:17]} exf6 {[%clk 00:48:04]} {[%emt 00:00:46]} 23. Nd4 {[%clk 00:53:09]}
{[%emt 00:03:52]} Be4 {[%clk 00:45:47]} {[%emt 00:02:47]} 24. b3 {[%clk
00:49:26]} {[%emt 00:04:15]} Ne3 {[%clk 00:42:26]} {[%emt 00:03:50]} 25. Re1
{[%clk 00:48:24]} {[%emt 00:01:30]} Rc3 {[%clk 00:42:15]} {[%emt 00:00:42]} 26.
Kd2 {[%clk 00:46:27]} {[%emt 00:02:27]} Nxd1 {[%clk 00:42:29]} {[%emt
00:00:17]} 27. Rxe4 {[%clk 00:46:28]} {[%emt 00:00:28]} Nf2 {[%clk 00:41:38]}
{[%emt 00:01:21]} 28. Re8+ {[%clk 00:46:35]} {[%emt 00:00:24]} 1-0